Cogmind - Beta 11.1 @@@ ROGUE MODE // 2022.12.06 @ 16:42:19 Player: L1l7 Result: Destroyed by B-75 Beast with Heavy Plasma Cannon Performance ------------- Evolutions (4) 2000 Regions Visited (8) 1600 Robots Destroyed (22) 110 Value Destroyed (588) 588 Prototype IDs (1) 20 Alien Tech Used (0) 0 Bonus (0) 0 TOTAL SCORE: 4318 Bonus ------- None Cogmind --------- Core Integrity 0/850 Matter 153/300 Energy 60/100 System Corruption 1% Temperature Cool (12) Movement Core (150) Ox2 Location -6/Lower Caves Parts ------- > --- POWER (4) -------- (None) > --- PROPULSION (4) --- (None) > --- UTILITY (5) ------ Improved Sensor Array Makeshift Transmission Jammer > --- WEAPON (2) ------- Makeshift Axe > --- INVENTORY (5) ---- Makeshift Transmission Jammer Makeshift Axe Peak State ------------ > --- POWER ------------ Micro Nuclear Core Fission Core > --- PROPULSION ------- Flexi-carbon Leg Armored Leg > --- UTILITY ---------- Advanced Heat Sink Improved Trap Scanner Improved Terrain Scanner Stasis Canceller System Restoration Module > --- WEAPON ----------- Coil Gun Heavy Machine Gun > --- INVENTORY -------- Micro Nuclear Core Light Antimatter Reactor Advanced Heat Sink Target Analyzer Minigun [Rating: 53] Favorites ----------- Power Light Ion Engine Engine Light Ion Engine Power Core Micro Nuclear Core Reactor Light Antimatter Reactor Propulsion Flight Unit Treads Armored Treads Leg Flexi-carbon Leg Flight Unit Flight Unit Utility Seismic Detector Device Seismic Detector Storage Small Storage Unit Protection Improved Propulsion Shielding Weapon Mining Laser Energy Gun Field Laser Energy Cannon Proton Cannon Ballistic Gun Heavy Machine Gun Launcher Grenade Launcher Special Weapon Mining Laser Slashing Weapon Makeshift Axe Build | -11 -10 -9 -9 -8 -7 -6 -6 -6 ------- Run | Scr Mat Mat Min Mat Fac Fac Low Low Slots Evolved 8 | . . 2 . 2 2 2 . . Power 3 | . . . . 1 1 1 . . Propulsion 2 | . . 1 . 1 . . . . Utility 3 | . . 1 . . 1 1 . . Weapon . | . . . . . . . . . Parts Attached 65 | 7 8 8 3 3 2 22 10 2 Power 10 | 1 1 1 . 1 . 5 1 . Engine 5 | 1 1 1 . 1 . 1 . . Core 4 | . . . . . . 3 1 . Reactor 1 | . . . . . . 1 . . Propulsion 16 | 2 2 1 2 2 1 3 3 . Treads 1 | . . . . . 1 . . . Leg 7 | 2 . . . . . 2 3 . Wheel . | . . . . . . . . . Hover . | . . . . . . . . . Flight 8 | . 2 1 2 2 . 1 . . Utility 13 | 1 2 1 . . . 7 2 . Device 11 | . 2 1 . . . 6 2 . Storage 1 | 1 . . . . . . . . Processor . | . . . . . . . . . Hackware . | . . . . . . . . . Protection 1 | . . . . . . 1 . . Artifact . | . . . . . . . . . Weapon 26 | 3 3 5 1 . 1 7 4 2 Energy Gun 3 | 2 . . . . . 1 . . Energy Cannon 6 | . 2 . . . . 1 2 1 Ballistic Gun 3 | 1 . . . . . 2 . . Ballistic Cannon . | . . . . . . . . . Launcher 7 | . . 4 . . . 3 . . Special Weapon 5 | . 1 1 1 . 1 . 1 . Impact Weapon . | . . . . . . . . . Slashing Weapon 2 | . . . . . . . 1 1 Piercing Weapon . | . . . . . . . . . Special Melee Weapon . | . . . . . . . . . Unidentified Prototypes 1 | . . . . . . . 1 . Parts Lost 19 | . . 2 . 2 4 6 . 5 Power 3 | . . . . . . 2 . 1 Propulsion 6 | . . . . 1 3 . . 2 Utility 4 | . . . . . 1 3 . . Weapon 6 | . . 2 . 1 . 1 . 2 Highest Loss Streak 6 | . . 2 . 1 2 6 . 5 To Critical Strikes . | . . . . . . . . . Average Slot Usage (%) 57 | . 78 83 100 89 33 52 32 44 Engine 6 | . 14 11 11 18 6 3 . . Core 2 | . . . . . . 5 5 5 Reactor 1 | . . . . . . 3 . . Leg 7 | . 4 . . . . 10 11 18 Flight 11 | . 23 33 33 34 11 . . . Device 16 | . 16 22 33 27 13 17 9 13 Ballistic Gun 2 | . . . . . . 8 . . Launcher 1 | . . 7 3 . . 1 . . Special Weapon 4 | . 11 10 18 9 1 . 1 5 Naked Turns 158 | . . . . . 57 101 . . Heaviest Build 39 | 13 19 10 10 13 12 39 29 19 Greatest Support 54 | 20 20 12 12 16 16 36 54 54 Greatest Overweight (x) 6 | . 6 . . . 2 3 . . Average Overweight (x) . | . . . . . . . . . Largest Inventory Capacity 8 | 8 8 5 5 5 5 5 5 5 Average Capacity 5 | 5 5 5 5 5 5 5 5 5 Most Carried 5 | 5 5 5 5 5 5 5 5 4 Average Carried 4 | . 4 4 4 3 4 4 3 3 Final Capacity 8 | 8 5 5 5 5 5 5 5 5 Final Carried 5 | 3 5 5 5 5 5 5 4 2 Class Distribution -------------------- 76% | Mutant 12% | Generator-Mutant 3% | Sprinter Dominant Class ---------------- Mutant | -10/Materials Mutant | -9/Materials Scavenger-Mutant | -9/Mines Scavenger-Sprinter | -8/Materials Mutant | -7/Factory Mutant | -6/Factory Mutant | -6/Lower Caves Mutant | -6/Lower Caves Resources | -11 -10 -9 -9 -8 -7 -6 -6 -6 ----------- Run | Scr Mat Mat Min Mat Fac Fac Low Low Matter Collected 867 | 128 95 36 . . . 542 53 13 Remotely . | . . . . . . . . . Salvage Created 724 | 115 . 84 . . . 525 . . Parts 47 | 7 . 8 3 . . 29 . . Haulers Intercepted . | . . . . . . . . . Recyclers Shooed 4 | . . . . . . 4 . . Parts Field Recycled . | . . . . . . . . . Retrieved Matter . | . . . . . . . . . Parts Self-Destructed 2 | . . . . . . . . 2 Prevented . | . . . . . . . . . Kills | -11 -10 -9 -9 -8 -7 -6 -6 -6 ------- Run | Scr Mat Mat Min Mat Fac Fac Low Low Combat Hostiles Destroyed 12 | . . 6 . . . 6 . . Guns 2 | . . . . . . 2 . . Cannons 1 | . . . . . . 1 . . AOE 7 | . . 6 . . . 1 . . Classes Destroyed 9 | 2 . 3 . . . 4 . . Worker 1 | . . 1 . . . . . . Builder 4 | . . . . . . 4 . . Tunneler 2 | 1 . . 1 . . . . . Recycler 2 | 1 . . . . . 1 . . Watcher 1 | . . . . . . 1 . . Swarmer 5 | . . 5 . . . . . . Grunt 4 | . . . . . . 4 . . Sentry 1 | . . 1 . . . . . . Programmer 2 | . . . . . . 2 . . Best Kill Streak 5 | 1 . 4 1 . . 5 . . Combat Bots Only 3 | . . 3 . . . 2 . . Max Kills in Single Turn 2 | 1 . 2 1 . . 2 . . Gunslinging . | . . . . . . . . . Exploded 2 | . . 2 . . . 1 . . Melee . | . . . . . . . . . Uniques/NPCs Destroyed . | . . . . . . . . . Combat | -11 -10 -9 -9 -8 -7 -6 -6 -6 -------- Run | Scr Mat Mat Min Mat Fac Fac Low Low Damage Taken 3284 | . . 388 . 60 269 1373 298 896 Core 1188 | . . 129 . . 205 405 100 349 Absorbed by Shields 60 | . . . . . 60 . . . Redirected to Shielding 107 | . . . . . . 107 . . Core Remaining (%) 87 | 100 100 . 67 100 70 . . . Volleys Fired 79 | 5 13 16 2 3 6 31 . 3 Largest 2 | 2 1 2 2 1 1 2 . 1 Hottest 200 | 70 100 130 200 100 100 85 . 75 Shots Fired 99 | 10 13 18 3 3 6 43 . 3 Gun 34 | 10 . . . . . 24 . . Cannon 16 | . . . . . . 15 . 1 Launcher 13 | . . 9 . . . 4 . . Special 36 | . 13 9 3 3 6 . . 2 Kinetic 29 | 5 . . . . . 24 . . Thermal 54 | 5 13 9 3 3 6 15 . . Explosive 10 | . . 6 . . . 4 . . Electromagnetic 4 | . . 3 . . . . . 1 Robot Hit Streak 8 | 3 . 2 2 . 1 8 . 7 Robot Miss Streak 3 | 1 1 2 . 1 3 2 . 1 Penetration Max . | . . . . . . . . . Secondary Targets . | . . . . . . . . . Shots Hit Robots 51 | 7 . 5 1 . 1 30 . 7 Core Hits 28 | 4 . 8 1 . 1 14 . . Critical Kills 3 | . . . . . . 3 . . Critical Parts Destroyed 2 | . . . . . . 2 . . Critical Strikes 6 | . . . . . . 5 . 1 Meltdown 3 | . . . . . . 3 . . Destroy 2 | . . . . . . 2 . . Sever 1 | . . . . . . . . 1 Melee Attacks 8 | . . . . . . . 1 7 Impact . | . . . . . . . . . Slashing 8 | . . . . . . . 1 7 Piercing . | . . . . . . . . . Sneak Attacks . | . . . . . . . . . Combat Hostiles . | . . . . . . . . . Follow-up Attacks . | . . . . . . . . . Damage Inflicted 2061 | 74 . 343 24 . 24 1397 . 199 Guns 493 | 74 . . . . . 419 . . Cannons 356 | . . . . . . 335 . 21 Explosions 960 | . . 319 . . . 641 . . Melee 178 | . . . . . . . . 178 Ramming 2 | . . . . . . 2 . . Kinetic 444 | 25 . . . . . 419 . . Thermal 663 | 49 . 24 24 . 24 542 . . Explosive 658 | . . 224 . . . 434 . . Electromagnetic 116 | . . 95 . . . . . 21 Impact . | . . . . . . . . . Slashing 178 | . . . . . . . . 178 Piercing . | . . . . . . . . . Highest Corruption 4 | . . . . . 4 . 1 1 Average Corruption 1 | . . . . . 2 . 1 1 Corruption Purged . | . . . . . . . . . Corruption Blocked . | . . . . . . . . . Effects 9 | . . . . . 2 . . 7 Message Errors 4 | . . . . . 2 . . 2 Matter Fused 3 | . . . . . . . . 3 Heat Flow Errors 2 | . . . . . . . . 2 Overload Shots . | . . . . . . . . . Overflow Damage 85 | . . 44 . . . 41 . . Projectiles 1 | . . . . . . 1 . . Explosions 84 | . . 44 . . . 40 . . Melee . | . . . . . . . . . Knockbacks . | . . . . . . . . . Impact . | . . . . . . . . . Kinetic . | . . . . . . . . . Secondary . | . . . . . . . . . Self-Inflicted Damage 204 | . . 69 . . . 135 . . Shots 4 | . . 2 . . . 2 . . Rammed . | . . . . . . . . . Targets Rammed 1 | . . . . . . 1 . . Kicked 1 | . . . . . . 1 . . Crushed . | . . . . . . . . . Highest Temperature 242 | 50 74 63 59 41 44 76 . 242 Average Temperature 29 | 24 24 23 27 19 22 29 . 120 Received Heat Transfer 577 | . . 54 . 18 . 337 . 168 Siege Activations . | . . . . . . . . . Robots Corrupted . | . . . . . . . . . Combat Hostiles . | . . . . . . . . . Parts Fried . | . . . . . . . . . Impact Corruptions . | . . . . . . . . . Robots Melted 3 | . . . . . . 3 . . Combat Hostiles 2 | . . . . . . 2 . . Parts Melted 5 | . . . . . . 5 . . Heat Transferred 905 | 148 . 50 50 . 50 607 . . Parts Sabotaged . | . . . . . . . . . Parts Stolen . | . . . . . . . . . Parts Stripped . | . . . . . . . . . Power Chain Reactions . | . . . . . . . . . Missiles Intercepted . | . . . . . . . . . Alert | -11 -10 -9 -9 -8 -7 -6 -6 -6 ------- Run | Scr Mat Mat Min Mat Fac Fac Low Low Peak Influence 389 | 10 54 389 162 86 119 113 . . Initial 151 | . 6 18 151 63 34 . . . Average 50 | 2 20 69 155 74 48 45 . . Maximum Alert Level 1 | . . 1 . . . . . . Low Security (%) 98 | 100 100 92 100 100 100 100 . . Level 1 1 | . . 7 . . . . . . Level 2 . | . . . . . . . . . Level 3 . | . . . . . . . . . Level 4 . | . . . . . . . . . Level 5 . | . . . . . . . . . High Security . | . . . . . . . . . Max Security . | . . . . . . . . . Squads Dispatched 7 | . . 1 . . 3 3 . . Investigation 1 | . . . . . 1 . . . Extermination 4 | . . . . . 2 2 . . Reinforcement 2 | . . 1 . . . 1 . . Assault . | . . . . . . . . . Garrison . | . . . . . . . . . Intercept . | . . . . . . . . . Searches Triggered . | . . . . . . . . . Construction Impeded 1 | . . . . . . 1 . . Haulers Reinforced . | . . . . . . . . . Active Scanning Responses . | . . . . . . . . . Cargo Convoy Interrupts . | . . . . . . . . . Stealth | -11 -10 -9 -9 -8 -7 -6 -6 -6 --------- Run | Scr Mat Mat Min Mat Fac Fac Low Low Distress Signals 3 | . . 2 . 1 . . . . Communications Jammed . | . . . . . . . . . Distress Signals . | . . . . . . . . . Times Spotted 61 | . 2 19 . 3 10 13 12 2 Peak Tracking Total 10 | . 2 9 . 3 6 4 10 2 Tactical Retreats 10 | . . 2 . . 2 1 4 1 Traps | -11 -10 -9 -9 -8 -7 -6 -6 -6 ------- Run | Scr Mat Mat Min Mat Fac Fac Low Low Traps Triggered 4 | . . . . . 4 . . . Indirectly . | . . . . . . . . . Trap Hack Attempts . | . . . . . . . . . Triggered . | . . . . . . . . . Disarmed . | . . . . . . . . . Reprogrammed . | . . . . . . . . . Reused . | . . . . . . . . . Traps Extracted . | . . . . . . . . . Installed . | . . . . . . . . . Triggered 1 | . . . . . . . . 1 Machines | -11 -10 -9 -9 -8 -7 -6 -6 -6 ---------- Run | Scr Mat Mat Min Mat Fac Fac Low Low Machines Disabled 10 | . . 3 . . . 6 1 . Max in Single Turn 4 | . . 1 . . . 4 1 . Machines Sabotaged . | . . . . . . . . . Garrisons Compromised . | . . . . . . . . . Overloaded Fab Kills . | . . . . . . . . . Hacking | -11 -10 -9 -9 -8 -7 -6 -6 -6 --------- Run | Scr Mat Mat Min Mat Fac Fac Low Low Machines Accessed 14 | . 4 2 . 1 2 4 1 . Terminals 7 | . 3 1 . 1 . 2 . . Fabricators 2 | . . . . . 1 1 . . Repair Stations 1 | . . . . . . 1 . . Recycling Units 3 | . 1 1 . . 1 . . . Scanalyzers . | . . . . . . . . . Garrison Access . | . . . . . . . . . Total Hacks 25 | . 8 3 . 2 3 8 1 . Successful 15 | . 7 3 . . 1 3 1 . Failed 10 | . 1 . . 2 2 5 . . Catastrophic 4 | . . . . . 1 3 . . Database Lockouts . | . . . . . . . . . Manual 1 | . . . . . . . 1 . Terminals 14 | . 6 2 . 2 . 4 . . Fabricators 4 | . . . . . 2 2 . . Repair Stations 2 | . . . . . . 2 . . Recycling Units 4 | . 2 1 . . 1 . . . Scanalyzers . | . . . . . . . . . Garrison Access . | . . . . . . . . . Terminal Hacks 9 | . 5 2 . . . 1 1 . Record 1 | . . . . . . 1 . . Open Door 1 | . . . . . . . 1 . Alert Level 1 | . 1 . . . . . . . Dispatch Records 3 | . 2 1 . . . . . . Investigation Status 2 | . 1 1 . . . . . . Zone Layout 1 | . 1 . . . . . . . Fabricator Hacks 2 | . . . . . . 2 . . Network Status 1 | . . . . . . 1 . . Build 1 | . . . . . . 1 . . Repair Station Hacks . | . . . . . . . . . Recycling Unit Hacks 4 | . 2 1 . . 1 . . . Report Inventory 3 | . 1 1 . . 1 . . . Retrieve Components 1 | . 1 . . . . . . . Scanalyzer . | . . . . . . . . . Garrison Access Hacks . | . . . . . . . . . Unauthorized Hacks . | . . . . . . . . . Terminals . | . . . . . . . . . Fabricators . | . . . . . . . . . Repair Stations . | . . . . . . . . . Recycling Units . | . . . . . . . . . Scanalyzers . | . . . . . . . . . Garrison Access . | . . . . . . . . . Data Cores Recovered . | . . . . . . . . . Used . | . . . . . . . . . Hacking Detections 10 | . 3 1 . 1 1 4 . . Full Trace Events 1 | . . . . . 1 . . . Feedback Events . | . . . . . . . . . Feedback Blocked . | . . . . . . . . . Robot Schematics Acquired . | . . . . . . . . . Robots Built . | . . . . . . . . . Authchips . | . . . . . . . . . Time . | . . . . . . . . . Total Robot Build Rating . | . . . . . . . . . Part Schematics Acquired . | . . . . . . . . . Parts Built 1 | . . . . . . 1 . . Authchips . | . . . . . . . . . Time 47 | . . . . . . 47 . . Total Part Build Rating 5 | . . . . . . 5 . . Parts Repaired . | . . . . . . . . . Time . | . . . . . . . . . Parts Recycled . | . . . . . . . . . Recycled Matter . | . . . . . . . . . Retrieved Matter . | . . . . . . . . . Retrieved Components 2 | . 2 . . . . . . . Parts Scanalyzed . | . . . . . . . . . Part Schematics Acquired . | . . . . . . . . . Parts Damaged . | . . . . . . . . . Bothacking | -11 -10 -9 -9 -8 -7 -6 -6 -6 ------------ Run | Scr Mat Mat Min Mat Fac Fac Low Low Used RIF Installer . | . . . . . . . . . Robots Hacked . | . . . . . . . . . Non-combat . | . . . . . . . . . Combat . | . . . . . . . . . Robot Hacks Applied . | . . . . . . . . . Relay Couplers Released . | . . . . . . . . . Fabnet Peak Effective % . | . . . . . . . . . Robots Rewired . | . . . . . . . . . Allies Hacked . | . . . . . . . . . Hacks Repelled . | . . . . . . . . . Allies | -11 -10 -9 -9 -8 -7 -6 -6 -6 -------- Run | Scr Mat Mat Min Mat Fac Fac Low Low Total Allies . | . . . . . . . . . Largest Group . | . . . . . . . . . Highest-Rated Group . | . . . . . . . . . Highest-Rated Ally . | . . . . . . . . . Total Orders . | . . . . . . . . . Ally Attacks . | . . . . . . . . . Total Damage . | . . . . . . . . . Kills . | . . . . . . . . . Allies Corrupted . | . . . . . . . . . Allies Melted . | . . . . . . . . . Intel | -11 -10 -9 -9 -8 -7 -6 -6 -6 ------- Run | Scr Mat Mat Min Mat Fac Fac Low Low Robot Analysis Total . | . . . . . . . . . Derelict Logs Recovered 3 | . . . 1 . . . 2 . Drone Launches . | . . . . . . . . . Drone Recoveries . | . . . . . . . . . Exploration | -11 -10 -9 -9 -8 -7 -6 -6 -6 ------------- Run | Scr Mat Mat Min Mat Fac Fac Low Low Turns Passed 4251 | 87 477 670 103 136 506 1355 550 367 Spaces Moved 3571 | 56 433 532 236 228 589 679 539 279 Core 385 | 15 1 . . . 260 109 . . Treads . | . . . . . . . . . Legs 1216 | 41 46 . . . . 468 382 279 Wheels . | . . . . . . . . . Hover . | . . . . . . . . . Flight 1970 | . 386 532 236 228 329 102 157 . Fastest Speed 31 | 50 37 34 34 31 31 35 35 120 Average Speed 69 | 101 47 34 34 31 60 100 95 120 Slowest Speed 360 | 120 360 34 34 34 150 275 120 120 Overloaded Moves . | . . . . . . . . . Propulsion Burnouts . | . . . . . . . . . Robots Hopped 8 | . 1 5 . . 1 . 1 . Cave-ins Triggered . | . . . . . . . . . Exploration Rate (%) 31 | 4 44 40 44 20 14 12 54 48 Regions Visited 8 Branch Regions 3 Pre-discovered Areas . | . . . . . . . . . Known Exits Taken 1 | . . . 1 . . . . . Unknown Exits Taken 7 | 1 1 1 . 1 1 1 1 . Scrap Searched 1 | . . . . . . . 1 . Spaces Dug 28 | . 12 12 2 2 . . . . Terrain Destroyed 108 | . 12 50 2 3 . 41 . . Melee . | . . . . . . . . . Projectile 27 | . 12 7 2 3 . 3 . . AOE 81 | . . 43 . . . 38 . . Terrain Rammed . | . . . . . . . . . Walls Destroyed . | . . . . . . . . . Machines Disabled . | . . . . . . . . . Actions | -11 -10 -9 -9 -8 -7 -6 -6 -6 --------- Run | Scr Mat Mat Min Mat Fac Fac Low Low Total 5181 | 78 671 981 249 282 723 1321 576 300 Wait 1288 | . 193 417 5 46 77 530 12 8 Move 3547 | 55 430 521 235 227 586 678 536 279 Hop 8 | . 1 5 . . 1 . 1 . Pick Up 82 | 10 13 9 2 2 3 33 10 . Fast Attach . | . . . . . . . . . Attach 61 | 7 8 7 1 3 2 22 9 2 Detach 6 | . 2 1 . 1 . 1 1 . Swap 4 | . . 1 2 . . . 1 . Drop 57 | 1 11 4 2 . 8 25 5 1 Fire 79 | 5 13 16 2 3 6 31 . 3 Melee 8 | . . . . . . . 1 7 Ram . | . . . . . . . . . Kick 1 | . . . . . . 1 . . Crush . | . . . . . . . . . Escape Stasis 40 | . . . . . 40 . . . Rewire . | . . . . . . . . . Trap . | . . . . . . . . . Miscellaneous . | . . . . . . . . . Route ------- -11/Scrapyard -10/Materials -9/Materials -9/Mines -8/Materials -7/Factory -6/Factory -6/Lower Caves -6/Lower Caves History --------- Turn | Location | Event 4 | -11/Scrapyard | Discovered new exit (range 16) 88 | -11/Scrapyard | Entered Materials 306 | -10/Materials | Build established: Mutant 466 | -10/Materials | Discovered new exit (range 9) 565 | -10/Materials | Entered another Materials area 565 | -9/Materials | Evolved 2 slots: Propulsion x1, Utility x1 1207 | -9/Materials | Discovered new exit (range 7) 1235 | -9/Materials | Entered Mines 1291 | -9/Mines | Assembled infested the area 1309 | -9/Mines | Identified exit to Materials 1338 | -9/Mines | Entered Materials 1338 | -8/Materials | Evolved 2 slots: Power x1, Propulsion x1 1467 | -8/Materials | Discovered new exit (range 16) 1474 | -8/Materials | Entered Factory 1474 | -7/Factory | Evolved 2 slots: Power x1, Utility x1 1973 | -7/Factory | Discovered new exit (range 12) 1980 | -7/Factory | Entered another Factory area 1980 | -6/Factory | Evolved 2 slots: Power x1, Utility x1 2056 | -6/Factory | Fabricated Stasis Canceller (x1) 2700 | -6/Factory | Build established: Generator-Mutant 3168 | -6/Factory | Spotted B-75 Beast 3281 | -6/Factory | Lost 6 parts (2p3u1w) 3317 | -6/Factory | Discovered new exit (range 10) 3335 | -6/Factory | Entered Lower Caves 3337 | -6/Lower Caves | Core integrity fell below 50% 3353 | -6/Lower Caves | Attracted the attention of an 0b10 outpost 3363 | -6/Lower Caves | Encountered a Warlord checkpoint 3364 | -6/Lower Caves | Learned Factory terminal intel 3432 | -6/Lower Caves | Discovered new exit (range 13) 3435 | -6/Lower Caves | Learned 4 Factory zone layouts 3446 | -6/Lower Caves | Build established: Mutant 3722 | -6/Lower Caves | Acquired the password to a Derelict Tinkerer's latest research 3737 | -6/Lower Caves | Found Prototype Special Weapon 3739 | -6/Lower Caves | Identified Molecular Deconstructor 3885 | -6/Lower Caves | Entered another Lower Caves area 4169 | -6/Lower Caves | Spotted B-75 Beast 4233 | -6/Lower Caves | Core integrity fell below 20% 4252 | -6/Lower Caves | Destroyed by B-75 Beast with Heavy Plasma Cannon Last Messages --------------- A/PMDQ>GY,AZX|3LOYJ8 System corrupted: Matter fused (-9). System corrupted: Matter fused (-7). Entropy package works its way towards B-75 Beast core. B-75 Beast core destabilizing. B-75 Beast core entropy levels peaking. Knocked back. System corrupted: Matter fused (-6). Acquired 6 matter. System corrupted: Heat flow error (+225). Lgt. Fission Core destroyed. Knocked back. Dropped Arm. Leg. Imp. Carbon-fiber Leg destroyed. Knocked back. Molecular Deconstructor destroyed. System corrupted: Heat flow error (+242). B-75 Beast Rnf. Deuterium Engine severed. Flexi-carbon Leg destroyed. Proton Cannon destroyed. Map ----- +----------------------------------------------------+ | ?????????????????????????????????????????????????? | | ?????????????????????????????????????????????????? | | ?????????????????????????????????????????????????? | | ?????????????????????????????????????????????????? | | ?????????????????????????????????????????????????? | | ?????????????????????????????????????????????????? | | ?????????????????????????????????????????????????? | | ?????????????????????????????????????????????????? | | ?????????????????????????????????????????????????? | | ?????????????????????????????????????????????????? | | ?????????????????????????????????????????????????? | | ?????????????????????????????????????????????????? | | ?????????????????????????????????????????????????? | | ????????????????????#####????????????????????????? | | ?????????????????#### #????????????????????????? | | ?????????????????#; ###??????????????????????? | | ?????????????????# ;#??????????????????????? | | ?????????????????##=% #??????????????????????? | | ??????????????????#; % #??????????? ????????? | | ???????????????????# #??##?????? #????????? | | ???????????????????# ###;##?### #????????? | | ???????????????????## ## #????????? | | ????????????????????##;; #????????? | | ?????????????????????##;; % #?????????? | | ??????????????????????##;; #??????????? | | ???????????????????????##@BB ##?????????? | | ????????????????????????#;BB #?????????? | | ??????????????????????### ### #?????????? | | ?????????????????????## ##???????????????? | | ?????????????????????# #???????????????? | | ??????????????????##?# #???????????????? | | ????????????????### ### #???????????????? | | ????????????????# ## #???????????????? | | ??????#??????????# #???????????????? | | ?????? ?????????## #???????????????? | | ?????# ???????#" ##???????????????? | | ????? ????? # ##??????????????? | | ????? ?? ??#### #??????????????? | | ?????" ?? ???????# ##??????????????? | | ? ??#" ""??"???????# ##???????????????? | | ? ## "" ???????# ##### #????????????????? | | # #"" """????????"# #???## ##???????????????? | | # ?"""" "" ???????#####???## #???????????????? | | ?? " ""??????????###???# ""##???????????????? | | # ?? ?????????## ##### ######## #????????? | | # ??? ????????### ### #????????? | | # ???? ???????## ## #????????? | | ###?# #??????## ##????????? | | ### ######## # ##?????????? | | ## ## ##??????????? | +----------------------------------------------------+ Best States ------------- Heat Dissipation 56 Energy Generation 40 Energy Capacity 360 Matter Stores 300 Matter Capacity 300 Sight Range 16 Robot Scan Range 15 Terrain Scan Range 16 Terrain Scan Density 10 Jamming Range 14 Propulsion Shielding 66 Evasion (%) 63 Item Schematics ----------------- None Robot Schematics ------------------ None Fabricated ------------ Stasis Canceller | x1 | -6/Factory | Preloaded Alien Tech Used ----------------- None Achievements -------------- None Challenges ------------ None Game ------ Seed AntimatterReinforcedGravjet Manual? 0 Play Time 01:00:58 Cumulative 13.5 hours Start 2022.12.06 @ 14:12:56 End 2022.12.06 @ 16:42:19 Sessions 1 Manual Loads 0 Difficulty Rogue Special Mode None Game No. 22 Rogue 22 Adventurer 0 Explorer 0 Win Type - Total 0 Types 0/0/0/0/0/0/0/0/0 Lore% 15 Gallery% 17 Achievement% 16 Wizard Run 0 Options --------- ASCII 0 Keyboard 0 Movement Arrows Keybinds 0 Fullscreen 2 Font 16/SmallcapsGlow Map View 76x50 Tactical HUD 0 Map Filters NONE Filters NONE Steam 1 RUN: c21226a3-e732-4707-913c-e237712406f3